Cogmind - Beta 13 @@@ ROGUE MODE // 2024.04.04 @ 13:26:47 Player: kopo Result: Destroyed by G-34 Mercenary with Small Laser Performance ------------- Evolutions (1) 500 Regions Visited (3) 600 Robots Destroyed (77) 385 Value Destroyed (1598) 1598 Prototype IDs (4) 80 Alien Tech Used (0) 0 Bonus (100) 100 TOTAL SCORE: 3263 Bonus ------- High Alert Combat Kills 100 Cogmind --------- Core Integrity 0/400 Matter 270/300 Energy 34/100 System Corruption 5% Temperature Cool (6) Movement Core (150) Ox2 Location -9/Storage Parts ------- > --- POWER (1) -------- (None) > --- PROPULSION (2) --- (None) > --- UTILITY (3) ------ Improved Heat Sink Large Storage Unit Weight Redist. System > --- WEAPON (3) ------- Improved Medium Laser Heavy Assault Rifle > --- INVENTORY (15) --- Improved Ion Engine Improved Ion Engine Aluminum Leg Aluminum Leg Aluminum Leg Improved Aluminum Leg Wheel Wheel Wheel Peak State ------------ > --- POWER ------------ Heavy Ion Engine > --- PROPULSION ------- Light Treads Improved Flight Unit > --- UTILITY ---------- Large Storage Unit Weight Redist. System Hardened Medium Armor Plating > --- WEAPON ----------- Improved Medium Laser Rocket Launcher Flail > --- INVENTORY -------- Improved Ion Engine Improved Ion Engine Improved Ion Engine Light Treads Improved Heat Sink Heavy Assault Rifle Heavy Assault Rifle Heavy Assault Rifle Rocket Launcher [Rating: 21] Favorites ----------- Power Improved Ion Engine Engine Improved Ion Engine Propulsion Light Treads Treads Light Treads Leg Aluminum Leg Wheel Wheel Flight Unit Improved Flight Unit Utility Large Storage Unit Device Seismic Detector Storage Large Storage Unit Protection Hardened Medium Armor Plating Weapon Flail Energy Gun Medium Laser Ballistic Gun Light Assault Rifle Launcher Rocket Launcher Impact Weapon Flail Build | -11 -10 -9 -9 ------- Run | Yrd Mat Mat Sto Slots Evolved 2 | . . 2 . Power . | . . . . Propulsion . | . . . . Utility 1 | . . 1 . Weapon 1 | . . 1 . Parts Attached 54 | 7 7 12 28 Power 6 | 1 1 1 3 Engine 6 | 1 1 1 3 Core . | . . . . Reactor . | . . . . Propulsion 13 | 2 1 1 9 Treads 7 | 2 1 1 3 Leg 3 | . . . 3 Wheel 2 | . . . 2 Hover . | . . . . Flight 1 | . . . 1 Utility 11 | 2 3 2 4 Device 6 | 1 2 1 2 Storage 2 | 1 1 . . Processor . | . . . . Hackware . | . . . . Protection 3 | . . 1 2 Artifact . | . . . . Weapon 24 | 2 2 8 12 Energy Gun 5 | 2 . 1 2 Energy Cannon . | . . . . Ballistic Gun 14 | . 2 6 6 Ballistic Cannon . | . . . . Launcher 4 | . . . 4 Special Weapon . | . . . . Impact Weapon 1 | . . 1 . Slashing Weapon . | . . . . Piercing Weapon . | . . . . Special Melee Weapon . | . . . . Unidentified Prototypes 4 | . . 1 3 Corrupted Parts 1 | . . . 1 System Corruption 5 | . . . 5 Parts Lost 19 | . 1 1 17 Power 3 | . . . 3 Propulsion 7 | . 1 1 5 Utility 3 | . . . 3 Weapon 6 | . . . 6 Highest Loss Streak 6 | . 1 1 6 To Critical Strikes . | . . . . Average Slot Usage (%) 94 | . 100 94 92 Engine 11 | . 14 11 10 Treads 18 | . 28 22 13 Leg 2 | . . . 5 Device 14 | . 14 17 12 Storage 11 | . 14 11 11 Protection 5 | . . 4 7 Energy Gun 3 | . 17 . 1 Ballistic Gun 13 | . 10 16 12 Launcher 3 | . . . 7 Impact Weapon 7 | . . 10 8 Naked Turns . | . . . . Heaviest Build 51 | 15 28 42 51 Greatest Support 46 | 40 40 40 46 Greatest Overweight (x) 3 | . . 1 3 Average Overweight (x) . | . . . . Largest Inventory Capacity 15 | 8 15 15 15 Average Capacity 13 | 7 8 15 15 Most Carried 15 | 5 10 15 15 Average Carried 10 | 3 7 12 10 Final Capacity 15 | 8 15 15 15 Final Carried 15 | 5 10 15 9 Class Distribution -------------------- 44% | Mutant 44% | Scavenger-Mutant 11% | Scavenger-Gunner Dominant Class ---------------- Mutant | -10/Materials Scavenger-Mutant | -9/Materials Mutant | -9/Storage Resources | -11 -10 -9 -9 ----------- Run | Yrd Mat Mat Sto Matter Collected 1312 | 270 111 131 800 Remotely . | . . . . Salvage Created 2207 | 164 511 405 1127 Parts 127 | 12 41 14 60 Haulers Intercepted 6 | . 2 1 3 Recyclers Shooed 3 | . . . 3 Parts Field Recycled . | . . . . Retrieved Matter . | . . . . Parts Self-Destructed . | . . . . Prevented . | . . . . Kills | -11 -10 -9 -9 ------- Run | Yrd Mat Mat Sto Combat Hostiles Destroyed 45 | . 12 11 22 Melee 8 | . . 6 2 Guns 18 | . 12 . 6 AOE 9 | . . . 9 Classes Destroyed 12 | 3 5 2 2 Worker 13 | 2 3 . 8 Builder 4 | . . . 4 Tunneler 2 | 2 . . . Hauler 6 | . 2 1 3 Recycler 3 | 1 . . 2 Mechanic 1 | . . 1 . Operator 1 | . 1 . . Watcher 2 | . 1 . 1 Swarmer 12 | . 8 4 . Grunt 23 | . 4 3 16 Duelist 1 | . . . 1 Sentry 9 | . . 4 5 Best Kill Streak 9 | 3 9 4 7 Combat Bots Only 4 | . 3 4 4 Max Kills in Single Turn 3 | 2 2 1 3 Gunslinging 1 | . 1 . . Exploded 3 | . . . 3 Melee 1 | . . 1 1 Uniques/NPCs Destroyed . | . . . . Combat | -11 -10 -9 -9 -------- Run | Yrd Mat Mat Sto Hostile Shots Fired 348 | . 81 53 214 Missed 86 | . 19 16 51 Damage Taken 3073 | . 589 404 2080 Core 513 | . 112 68 333 Absorbed by Shields . | . . . . Regen/Repaired (Parts) 84 | . . . 84 Core Remaining (%) 77 | 100 55 . . Volleys Fired 121 | 9 58 8 46 Largest 3 | 2 2 2 3 Hottest 90 | 90 90 40 89 Shots Fired 260 | 18 116 16 110 Gun 229 | 18 116 16 79 Cannon . | . . . . Launcher 31 | . . . 31 Special . | . . . . Kinetic 138 | . 46 16 76 Thermal 47 | 9 35 . 3 Explosive 31 | . . . 31 Electromagnetic 44 | 9 35 . . Robot Hit Streak 15 | 2 8 10 15 Robot Miss Streak 5 | 2 5 1 3 Penetration Max . | . . . . Secondary Targets 5 | . 3 . 2 Max Gunslinging Chain 1 | . 1 . 1 Shots Hit Robots 212 | 10 66 42 94 Core Hits 97 | 6 29 10 52 Critical Kills 2 | . . 1 1 Critical Parts Destroyed 10 | . . 6 4 Critical Strikes 13 | . . 8 5 Destroy 1 | . . . 1 Smash 12 | . . 8 4 Melee Attacks 81 | . . 42 39 Impact 81 | . . 42 39 Slashing . | . . . . Piercing . | . . . . Sneak Attacks 6 | . . 3 3 Combat Hostiles . | . . . . Follow-up Attacks . | . . . . Damage Inflicted 5373 | 162 818 1155 3238 Guns 1910 | 162 789 111 848 Cannons . | . . . . Explosions 1454 | . 29 . 1425 Melee 2009 | . . 1044 965 Ramming . | . . . . Kinetic 1161 | . 253 111 797 Thermal 356 | 74 231 . 51 Explosive 1425 | . . . 1425 Electromagnetic 422 | 88 334 . . Impact 2009 | . . 1044 965 Slashing . | . . . . Piercing . | . . . . Highest Corruption 5 | . . . 5 Average Corruption 5 | . . . 5 Corruption Purged . | . . . . Corruption Blocked . | . . . . Effects 25 | . . . 25 Message Errors 4 | . . . 4 Matter Fused 7 | . . . 7 Heat Flow Errors 3 | . . . 3 Energy Discharges 3 | . . . 3 Parts Rejected 1 | . . . 1 Data Loss (minor) 5 | . . . 5 Data Loss (major) 1 | . . . 1 Alerts 1 | . . . 1 Overload Shots . | . . . . Overflow Damage 566 | . . 307 259 Projectiles . | . . . . Explosions 23 | . . . 23 Melee 543 | . . 307 236 Knockbacks 7 | . . 2 5 Impact 7 | . . 2 5 Kinetic . | . . . . Secondary . | . . . . Self-Inflicted Damage 90 | . . . 90 Shots 4 | . . . 4 Rammed . | . . . . Targets Rammed . | . . . . Kicked . | . . . . Crushed . | . . . . Highest Temperature 432 | 240 432 12 292 Average Temperature 109 | 111 156 6 53 Received Heat Transfer 1284 | . 180 105 999 Effects 4 | . 4 . . Shutdowns 1 | . 1 . . Energy Bleed 3 | . 3 . . Siege Activations . | . . . . Robots Corrupted . | . . . . Combat Hostiles . | . . . . Parts Fried 20 | . 1 11 8 Impact Corruptions 23 | . . 11 12 Robots Melted . | . . . . Combat Hostiles . | . . . . Parts Melted 2 | . 2 . . Heat Transferred 957 | 222 642 . 93 Parts Sabotaged . | . . . . Parts Stolen . | . . . . Parts Stripped . | . . . . Power Chain Reactions 1 | . 1 . . Alert | -11 -10 -9 -9 ------- Run | Yrd Mat Mat Sto Peak Influence 674 | 25 325 181 674 Initial 81 | . 16 81 14 Average 200 | 7 169 73 315 Maximum Alert Level 2 | . 1 . 2 Low Security (%) 70 | 100 74 100 47 Level 1 6 | . 25 . 3 Level 2 22 | . . . 48 Level 3 . | . . . . Level 4 . | . . . . Level 5 . | . . . . High Security . | . . . . Max Security . | . . . . Squads Dispatched 10 | . 2 2 6 Investigation 6 | . 1 1 4 Extermination . | . . . . Reinforcement 3 | . 1 1 1 Assault 1 | . . . 1 Garrison . | . . . . Intercept . | . . . . Searches Triggered . | . . . . Construction Impeded 1 | . . . 1 Haulers Reinforced . | . . . . Active Scanning Responses . | . . . . Cargo Convoy Interrupts . | . . . . Stealth | -11 -10 -9 -9 --------- Run | Yrd Mat Mat Sto Distress Signals 1 | . . 1 . Communications Jammed . | . . . . Distress Signals . | . . . . Times Spotted 72 | . 22 17 33 Peak Tracking Total 6 | . 5 4 6 Tactical Retreats 5 | . 1 1 3 Traps | -11 -10 -9 -9 ------- Run | Yrd Mat Mat Sto Traps Triggered 1 | . . 1 . Indirectly . | . . . . Trap Hack Attempts . | . . . . Triggered . | . . . . Disarmed 4 | . 4 . . Reprogrammed . | . . . . Reused . | . . . . Traps Extracted . | . . . . Installed . | . . . . Triggered 2 | . 1 . 1 Machines | -11 -10 -9 -9 ---------- Run | Yrd Mat Mat Sto Machines Disabled 8 | . . . 8 Max in Single Turn 2 | . . . 2 Machines Repaired . | . . . . Machines Dismantled . | . . . . Machines Sabotaged . | . . . . Overloaded Fab Kills . | . . . . Hacking | -11 -10 -9 -9 --------- Run | Yrd Mat Mat Sto Machines Accessed 16 | . 2 7 7 Terminals 12 | . 2 5 5 Fabricators . | . . . . Repair Stations 2 | . . . 2 Recycling Units 1 | . . 1 . Scanalyzers 1 | . . 1 . Garrison Access . | . . . . Total Hacks 47 | . 3 20 24 Successful 21 | . 1 10 10 Failed 26 | . 2 10 14 Catastrophic 3 | . . 1 2 Database Lockouts . | . . . . Manual . | . . . . Terminals 35 | . 3 16 16 Fabricators . | . . . . Repair Stations 8 | . . . 8 Recycling Units 2 | . . 2 . Scanalyzers 2 | . . 2 . Garrison Access . | . . . . Terminal Hacks 14 | . 1 7 6 Repair Station Index 1 | . . . 1 Alert Level 1 | . . . 1 Unreport Threat 2 | . . 1 1 Locate Traps 1 | . . 1 . Disarm Traps 1 | . 1 . . Dispatch Records 2 | . . 1 1 Transport Status 1 | . . . 1 Hauler Manifests 2 | . . 1 1 Registered Components 1 | . . 1 . Zone Layout 2 | . . 2 . Fabricator Hacks . | . . . . Repair Station Hacks 4 | . . . 4 Scan Component 3 | . . . 3 Repair 1 | . . . 1 Recycling Unit Hacks 1 | . . 1 . Retrieve Components 1 | . . 1 . Scanalyzer 2 | . . 2 . Insert Component 1 | . . 1 . Analyze 1 | . . 1 . Garrison Access Hacks . | . . . . Unauthorized Hacks . | . . . . Terminals . | . . . . Fabricators . | . . . . Repair Stations . | . . . . Recycling Units . | . . . . Scanalyzers . | . . . . Garrison Access . | . . . . Data Cores Recovered 1 | . 1 . . Used 1 | . 1 . . Hacking Detections 13 | . 2 5 6 Full Trace Events 5 | . . . 5 Feedback Events . | . . . . Feedback Blocked . | . . . . Robot Schematics Acquired . | . . . . Robots Built . | . . . . Authchips . | . . . . Time . | . . . . Total Robot Build Rating . | . . . . Part Schematics Acquired 1 | . . 1 . Parts Built . | . . . . Authchips . | . . . . Time . | . . . . Total Part Build Rating . | . . . . Parts Repaired 1 | . . . 1 Time 32 | . . . 32 Parts Recycled . | . . . . Recycled Matter . | . . . . Retrieved Matter . | . . . . Retrieved Components 8 | . . 8 . Parts Scanalyzed 1 | . . 1 . Part Schematics Acquired 1 | . . 1 . Parts Damaged 1 | . . 1 . Bothacking | -11 -10 -9 -9 ------------ Run | Yrd Mat Mat Sto Used RIF Installer . | . . . . Robots Hacked . | . . . . Non-combat . | . . . . Combat . | . . . . Robot Hacks Applied . | . . . . Relay Couplers Released . | . . . . Fabnet Peak Effective % . | . . . . Robots Rewired . | . . . . Allies Hacked . | . . . . Hacks Repelled . | . . . . Allies | -11 -10 -9 -9 -------- Run | Yrd Mat Mat Sto Total Allies . | . . . . Largest Group . | . . . . Highest-Rated Group . | . . . . Highest-Rated Ally . | . . . . Total Orders . | . . . . Ally Attacks . | . . . . Total Damage . | . . . . Kills . | . . . . Allies Corrupted . | . . . . Allies Melted . | . . . . Intel | -11 -10 -9 -9 ------- Run | Yrd Mat Mat Sto Robot Analysis Total . | . . . . Derelict Logs Recovered . | . . . . Drone Launches . | . . . . Drone Recoveries . | . . . . Exploration | -11 -10 -9 -9 ------------- Run | Yrd Mat Mat Sto Turns Passed 2689 | 120 460 846 1263 Spaces Moved 955 | 49 157 293 456 Core 11 | 4 . . 7 Treads 810 | 45 157 293 315 Legs 134 | . . . 134 Wheels . | . . . . Hover . | . . . . Flight . | . . . . Fastest Speed 50 | 50 160 160 120 Average Speed 173 | 151 160 161 189 Slowest Speed 320 | 160 160 240 320 Overloaded Moves . | . . . . Propulsion Burnouts . | . . . . Robots Hopped . | . . . . Cave-ins Triggered . | . . . . Exploration Rate (%) 35 | 4 31 32 75 Regions Visited 3 Branch Regions 1 Pre-discovered Areas . | . . . . Known Exits Taken . | . . . . Unknown Exits Taken 3 | 1 1 1 . Scrap Searched . | . . . . Spaces Dug 8 | . . . 8 Terrain Destroyed 167 | . 2 . 165 Melee 1 | . . . 1 Projectile . | . . . . AOE 166 | . 2 . 164 Terrain Rammed . | . . . . Walls Destroyed . | . . . . Machines Disabled . | . . . . Actions | -11 -10 -9 -9 --------- Run | Yrd Mat Mat Sto Total 1637 | 78 258 594 707 Wait 339 | . 25 212 102 Move 952 | 48 156 292 456 Hop . | . . . . Pick Up 61 | 13 9 16 23 Fast Attach 2 | . . 1 1 Attach 30 | 7 1 6 16 Detach 3 | . . 3 . Swap 22 | . 6 5 11 Drop 26 | 1 3 9 13 Fire 121 | 9 58 8 46 Melee 81 | . . 42 39 Ram . | . . . . Kick . | . . . . Crush . | . . . . Escape Stasis . | . . . . Rewire . | . . . . Trap . | . . . . Miscellaneous . | . . . . Route ------- -11/Scrapyard -10/Materials -9/Materials (discovered 4 exits: [*Min x2] / *Sto x2) -9/Storage History --------- Turn | Location | Event 44 | -11/Scrapyard | Discovered new exit (range 16) 121 | -11/Scrapyard | Entered Materials 312 | -10/Materials | Build established: Mutant 514 | -10/Materials | Discovered new exit (range 8) 581 | -10/Materials | Entered another Materials area 581 | -9/Materials | Evolved 2 slots: Utility x1, Weapon x1 713 | -9/Materials | Build established: Scavenger-Mutant 728 | -9/Materials | Discovered new exit (range 6) 1163 | -9/Materials | Discovered new exit (range 12) 1312 | -9/Materials | Discovered new exit (range 16) 1404 | -9/Materials | Discovered new exit (range 16) 1427 | -9/Materials | Entered Storage 1881 | -9/Storage | Build established: Mutant 2262 | -9/Storage | Core integrity fell below 50% 2288 | -9/Storage | Lost 5 parts (2n1u2w) 2627 | -9/Storage | First assault squad dispatched 2647 | -9/Storage | Repaired Imp. Aluminum Leg? 2683 | -9/Storage | Core integrity fell below 20% 2690 | -9/Storage | Destroyed by G-34 Mercenary with Small Laser Last Messages --------------- 02670_ K-01 Serf collects debris. 02670_ Imp. Ion Engine destroyed. 02671_ System corrupted: Hvy. Assault Rifle rejected. 02671_ G-47 Trooper destroyed. 02671_ Switching to secondary target: G-34 Mercenary. 02674_ K-01 Serf collects debris. 02675_ Hvy. Assault Rifle destroyed. 02676_ Wheel destroyed. 02676_ K-01 Serf collects debris. 02678_ Hvy. Assault Rifle destroyed. 02679_ Acquired 54 matter. 02680_ K-01 Serf collects debris. 02682_ Imp. Ion Engine destroyed. 02683_ K-01 Serf collects debris. 02684_ Acquired Hvy. Assault Rifle. 02686_ G-34 Mercenary destroyed. 02686_ Switching to secondary target: G-34 Mercenary. 02686_ K-01 Serf collects debris. 02690_ System corrupted: Energy discharge (-8). 02690_ K-01 Serf collects debris. Map ----- +----------------------------------------------------+ | ????????????????????????????????????????? | | ????????????????????????????????????????? | | ????????????????????????????????????????? | | ????????????????????????????????????????? | | ????????????????????????????????????????? | | ????????????????????????????????????????? | | ???????????????? ?????????????????????? | | ???????????????# ?????????????????????? | | ???????????????# ?????????????????????? | | #####??????????# ?????????????????????? | | + ???????????+ ?????????????????????? | | # ????????????# #????????????????????? | | # "????????????# #????????????????????? | | # "??????#?????# #????????????????????? | | + "????? #?????# #????????????????????? | | # """""" #?????# #????????????????????? | | # #?????# ###########??????????? | | # #?????# # #??????????? | | # #?????# # """ """ #??????????? | | ####+#####?????# # """ """ #??????????? | | ???# #?????????# [*#!""" """ #??????????? | | ???# #?????????# %i! * #??????????? | | ##?# #?????????# #= k! #??????????? | | T### #?????????# # g%gg #??????????? | | | ########??# # [ #??????????? | | # #??# #####"@"# #??????????? | | # #??# #???#"R"###??????????? | | # #??# #???#"""#????????????? | | # #??# #???#####????????????? | | #??# #????????????????????? | | #??# #????????????????????? | | ### ########?# #????????????????????? | | # # #?# #####????????????????? | | ## # #?# ## ####?????????????? | | #### ## ### # ###????????????? | | # # # ## ### # #????????????? | | # # # ### ###### #??????####### | | # ## # **= # ### ####????# """ # | | ## # #####+##### # #????# "R" # | | ?# #! [ * * # ! " #????# " " # | | ?# * ! * != # "" ###### # | | ?# = # """" # # # | | ?## [# " *#! !!!# | | ??######## + * T + *!! # | | ?????????# # [# !! # | | ?????????# ^# [ ## ## # | | ?????????### ##/# # [ ## # ## # | | ???????????## ### ## # | | ????????????# # ### ### ## # | | ????????????# ## #### #### ### | +----------------------------------------------------+ Best States ------------- Heat Dissipation 42 Energy Generation 14 Energy Capacity 280 Matter Stores 300 Matter Capacity 300 Sight Range 16 Terrain Scan Range 16 Terrain Scan Density 10 Additional Mass Support 6 Armor Coverage 450 Evasion (%) 47 Recoil Reduction 2 Item Schematics ----------------- Rocket Launcher | -9/Materials | Scanalyzed Robot Schematics ------------------ None Fabricated ------------ Nothing Alien Tech Used ----------------- None Achievements -------------- Dynamic Key Oops Significant Disruption Challenges ------------ None Game ------ Seed FusionAlertCycler Manual? 0 Play Time 00:42:44 Cumulative 5.8 hours Start 2024.04.04 @ 12:39:51 End 2024.04.04 @ 13:26:47 Sessions 1 Manual Loads 0 Difficulty Rogue Special Mode None Game No. 7 Rogue 7 Adventurer 0 Explorer 0 Win Type - Total 0 Types 0/0/0/0/0/0/0/0/0 Lore% 8 Gallery% 10 Achievement% 9 Wizard Run 0 Options --------- Layout 0 ASCII 0 Keyboard 0 Movement Mouse Keybinds 0 Fullscreen 1 Font 18/SmallcapsGlow Map View 38x25 Zoom Use 94% Tactical HUD 1 Map Filters NONE Filters NONE Steam 1 RUN: 5b459051-decf-4635-b2b9-823dceed3b9c